Cogmind - Beta 15 @@@ ROGUE MODE // 2025.10.13 @ 21:42:49 Player: Bean Result: Destroyed by as-16253 with Assembled Rifle Performance ------------- Evolutions (0) 0 Regions Visited (4) 800 Robots Destroyed (14) 70 Value Destroyed (235) 235 Prototype IDs (25) 500 Alien Tech Used (0) 0 Bonus (381) 381 TOTAL SCORE: 1986 Bonus ------- Follower Combat Kills 81 Aligned with FarCom 300 Cogmind --------- Core Integrity 0/250 Matter 260/300 Energy 89/100 System Corruption 0% Temperature Cool (20) Movement Core (50) Location -9/Mines Parts ------- > --- POWER (1) -------- (None) > --- PROPULSION (2) --- (None) > --- UTILITY (2) ------ (None) > --- WEAPON (2) ------- (None) > --- INVENTORY (5) ---- Ion Engine Heat Sink Trap Reconfigurator EM Pulse Gun Mining Laser Peak State ------------ > --- POWER ------------ Light Nuclear Core > --- PROPULSION ------- Aluminum Leg Aluminum Leg > --- UTILITY ---------- Medium Storage Unit Experimental Sensor Array > --- WEAPON ----------- Small Laser Light Assault Rifle > --- INVENTORY -------- Ion Engine Light Ion Engine Aluminum Leg Heat Sink Thief Drone Bay EM Pulse Gun Light Assault Rifle Rocket Launcher Mining Laser [Rating: 18] Favorites ----------- Power Light Nuclear Core Engine Ion Engine Power Core Light Nuclear Core Propulsion Aluminum Leg Leg Aluminum Leg Utility Medium Storage Unit Device Thief Drone Bay Storage Medium Storage Unit Weapon Light Assault Rifle Energy Gun Small Laser Ballistic Gun Light Assault Rifle Launcher Rocket Launcher Build | -11 -10 -10 -10 -9 ------- Run | Yrd Mat Min Exi Min Slots Evolved . | . . . . . Power . | . . . . . Propulsion . | . . . . . Utility . | . . . . . Weapon . | . . . . . Parts Attached 17 | 8 6 2 . 1 Power 3 | 2 1 . . . Engine 2 | 2 . . . . Core 1 | . 1 . . . Reactor . | . . . . . Propulsion 3 | 2 1 . . . Treads . | . . . . . Leg 3 | 2 1 . . . Wheel . | . . . . . Hover . | . . . . . Flight . | . . . . . Utility 6 | 2 2 2 . . Device 4 | 1 1 2 . . Storage 2 | 1 1 . . . Processor . | . . . . . Hackware . | . . . . . Protection . | . . . . . Artifact . | . . . . . Weapon 5 | 2 2 . . 1 Energy Gun 2 | . 2 . . . Energy Cannon . | . . . . . Ballistic Gun 2 | 2 . . . . Ballistic Cannon . | . . . . . Launcher 1 | . . . . 1 Special Weapon . | . . . . . Impact Weapon . | . . . . . Slashing Weapon . | . . . . . Piercing Weapon . | . . . . . Special Melee Weapon . | . . . . . Unidentified Prototypes 2 | . . 2 . . Parts Lost 7 | . 2 . . 5 Power 1 | . . . . 1 Propulsion 3 | . 1 . . 2 Utility 1 | . 1 . . . Weapon 2 | . . . . 2 Highest Loss Streak 5 | . 2 . . 5 To Critical Strikes . | . . . . . Average Backups 6 | 2 3 8 9 8 Power 1 | . 1 2 2 2 Propulsion . | . . 1 2 1 Utility 1 | . . 1 2 2 Weapon 3 | . 1 3 3 3 Tool/Special . | . . . . . Unused Backups 5 | . 1 . 1 3 Power . | . . . . . Propulsion 2 | . . . 1 1 Utility 2 | . 1 . . 1 Weapon 1 | . . . . 1 Tool/Special . | . . . . . Average Slot Usage (%) 99 | . 97 100 100 96 Engine 1 | . 5 . . . Core 12 | . 8 14 14 12 Leg 27 | . 26 28 28 28 Device 13 | . 13 14 14 14 Storage 14 | . 14 14 14 14 Energy Gun 13 | . 11 14 14 12 Ballistic Gun 14 | . 16 14 14 10 Peak Build Rating 18 | 9 9 18 17 17 Average Rating 13 | 5 8 14 16 15 On Entrance 10 | . 9 9 16 16 Naked Turns 3 | . . . . 3 Heaviest Build 24 | 13 18 21 21 24 Greatest Support 20 | 20 20 20 20 20 Greatest Overweight (x) 1 | . 1 1 1 1 Average Overweight (x) . | . . . 1 . Largest Inventory Capacity 10 | 8 10 10 10 10 Average Capacity 9 | 7 8 10 10 9 Most Carried 10 | 5 5 10 10 8 Average Carried 7 | 2 3 8 9 7 Final Capacity 10 | 8 10 10 10 5 Final Carried 10 | 2 5 10 8 5 Class Distribution -------------------- 76% | Mutant 23% | Scavenger-Mutant Dominant Class ---------------- Scavenger-Mutant | -10/Materials Mutant | -10/Mines Mutant | -10/Exiles Mutant | -9/Mines Resources | -11 -10 -10 -10 -9 ----------- Run | Yrd Mat Min Exi Min Matter Collected 474 | 286 130 58 . . Remotely . | . . . . . Salvage Created 461 | 115 223 56 . 67 Parts 33 | 9 18 4 . 2 Haulers Intercepted . | . . . . . Recyclers Shooed 1 | 1 . . . . Parts Field Recycled . | . . . . . Retrieved Matter . | . . . . . Parts Self-Destructed . | . . . . . Prevented . | . . . . . Kills | -11 -10 -10 -10 -9 ------- Run | Yrd Mat Min Exi Min Combat Hostiles Destroyed 15 | . 6 1 . 8 Guns 7 | . 6 1 . . AOE 8 | . . . . 8 Classes Destroyed 6 | 2 3 . . 1 Tunneler 3 | 2 1 . . . Recycler 1 | 1 . . . . Watcher 1 | . 1 . . . Swarmer 3 | . 3 . . . Grunt 6 | . 3 1 . 2 Assembled 8 | . . . . 8 Best Kill Streak 8 | 2 3 1 . 8 Combat Bots Only 8 | . 3 1 . 8 Max Kills in Single Turn 3 | 1 1 1 . 3 Gunslinging . | . . . . . Exploded 3 | . . . . 3 Melee . | . . . . . Uniques/NPCs Destroyed . | . . . . . Combat | -11 -10 -10 -10 -9 -------- Run | Yrd Mat Min Exi Min Hostile Shots Fired 86 | . 45 8 . 33 Missed 25 | . 13 2 . 10 Hits 61 | . 32 6 . 23 Melee 3 | . . . . 3 Projectile 58 | . 32 6 . 20 Damage Taken 984 | . 387 89 . 508 Core 253 | . 80 15 . 158 Absorbed by Shields . | . . . . . Core Remaining (%) 100 | 100 . . . . Volleys Fired 58 | 8 37 8 . 5 Largest 2 | 2 2 2 . 2 Hottest 80 | 40 80 60 . 73 Shots Fired 114 | 16 74 16 . 8 Gun 109 | 16 74 16 . 3 Cannon . | . . . . . Launcher 5 | . . . . 5 Special . | . . . . . Kinetic 74 | 16 50 8 . . Thermal 27 | . 16 8 . 3 Explosive 5 | . . . . 5 Electromagnetic 8 | . 8 . . . Robot Hit Streak 6 | 5 6 4 . 1 Robot Miss Streak 4 | 2 2 2 . 4 Penetration Max . | . . . . . Secondary Targets . | . . . . . Shots Hit Robots 62 | 9 41 11 . 1 Core Hits 49 | 5 15 4 . 25 Critical Kills . | . . . . . Critical Parts Destroyed . | . . . . . Critical Strikes . | . . . . . Melee Attacks . | . . . . . Impact . | . . . . . Slashing . | . . . . . Piercing . | . . . . . Sneak Attacks . | . . . . . Combat Hostiles . | . . . . . Follow-up Attacks . | . . . . . Damage Inflicted 1593 | 78 387 101 . 1027 Guns 538 | 78 348 101 . 11 Cannons . | . . . . . Explosions 1055 | . 39 . . 1016 Melee . | . . . . . Ramming . | . . . . . Kinetic 386 | 78 261 47 . . Thermal 147 | . 82 54 . 11 Explosive 1016 | . . . . 1016 Electromagnetic 44 | . 44 . . . Impact . | . . . . . Slashing . | . . . . . Piercing . | . . . . . Highest Corruption . | . . . . . Average Corruption . | . . . . . Corruption Purged . | . . . . . Corruption Blocked . | . . . . . Overload Shots . | . . . . . Overflow Damage 26 | . . . . 26 Projectiles . | . . . . . Explosions 26 | . . . . 26 Melee . | . . . . . Knockbacks . | . . . . . Impact . | . . . . . Kinetic . | . . . . . Secondary . | . . . . . Self-Inflicted Damage 157 | . 4 . . 153 Shots 5 | . 1 . . 4 Rammed . | . . . . . Targets Rammed . | . . . . . Kicked . | . . . . . Crushed . | . . . . . Highest Temperature 111 | . 34 111 . 33 Average Temperature 20 | . 8 46 . 14 Received Heat Transfer 297 | . 186 51 . 60 Siege Activations . | . . . . . Martial Activations . | . . . . . Shielding Activations . | . . . . . Robots Disrupted . | . . . . . Combat Hostiles . | . . . . . Robots Corrupted . | . . . . . Combat Hostiles . | . . . . . Parts Fried . | . . . . . Impact Corruptions . | . . . . . Robots Melted . | . . . . . Combat Hostiles . | . . . . . Parts Melted . | . . . . . Heat Transferred 300 | . 150 125 . 25 Parts Sabotaged . | . . . . . Parts Stolen . | . . . . . Parts Stripped . | . . . . . Power Chain Reactions 1 | . 1 . . . Alert | -11 -10 -10 -10 -9 ------- Run | Yrd Mat Min Exi Min Maximum Alert Level . | . . . . . Low Security (%) 100 | 100 100 100 . 100 Level 1 . | . . . . . Level 2 . | . . . . . Level 3 . | . . . . . Level 4 . | . . . . . Level 5 . | . . . . . High Security . | . . . . . Max Security . | . . . . . Peak Influence 102 | 10 69 102 . 19 Initial 18 | . . 18 . . Average 18 | 1 16 22 . 1 Influence Increases 461 | 15 194 219 . 33 Destroy 0b10 Robot/C 240 | . 120 120 . . Destroy 0b10 Robot/NC 25 | 15 10 . . . Destroy Leader 62 | . 32 30 . . Allied During Kill 54 | . . 54 . . Successful Hack 9 | . 9 . . . Destroy Structure 41 | . 8 . . 33 Lose Combat Pursuer 30 | . 15 15 . . Influence Decreases 461 | 15 146 223 44 33 Entered New Map 74 | . . 30 44 . Time Decay 342 | 15 126 193 . 8 Lost Part 45 | . 20 . . 25 Squads Dispatched 2 | . 2 . . . Investigation 2 | . 2 . . . Extermination . | . . . . . Reinforcement . | . . . . . Assault . | . . . . . Garrison . | . . . . . Intercept . | . . . . . Searches Triggered . | . . . . . Construction Impeded . | . . . . . Haulers Reinforced . | . . . . . Active Scanning Responses . | . . . . . Cargo Convoy Interrupts . | . . . . . Stealth | -11 -10 -10 -10 -9 --------- Run | Yrd Mat Min Exi Min Distress Signals . | . . . . . Communications Jammed . | . . . . . Distress Signals . | . . . . . Times Spotted 35 | . 11 5 . 19 Peak Tracking Total 12 | . 3 2 . 12 Tactical Retreats 3 | . 1 1 . 1 Traps | -11 -10 -10 -10 -9 ------- Run | Yrd Mat Min Exi Min Traps Triggered 1 | . 1 . . . Indirectly . | . . . . . Trap Hack Attempts . | . . . . . Triggered . | . . . . . Disarmed . | . . . . . Reprogrammed . | . . . . . Reused . | . . . . . Traps Extracted . | . . . . . Installed . | . . . . . Triggered . | . . . . . Machines | -11 -10 -10 -10 -9 ---------- Run | Yrd Mat Min Exi Min Machines Disabled . | . . . . . Max in Single Turn . | . . . . . Machines Repaired . | . . . . . Machines Dismantled . | . . . . . Machines Sabotaged . | . . . . . Overloaded Fab Kills . | . . . . . Hacking | -11 -10 -10 -10 -9 --------- Run | Yrd Mat Min Exi Min Machines Accessed 6 | . 3 2 1 . Terminals 3 | . 2 1 . . Fabricators . | . . . . . Repair Stations . | . . . . . Recycling Units 1 | . 1 . . . Scanalyzers . | . . . . . Garrison Access . | . . . . . Total Hacks 13 | . 7 5 1 . Successful 5 | . 3 1 1 . Failed 8 | . 4 4 . . Catastrophic . | . . . . . Database Lockouts . | . . . . . Manual 13 | . 8 4 1 . Terminals 8 | . 4 4 . . Fabricators . | . . . . . Repair Stations . | . . . . . Recycling Units 3 | . 3 . . . Scanalyzers . | . . . . . Garrison Access . | . . . . . Terminal Hacks 3 | . 1 1 1 . Open Door 1 | . . 1 . . Terminal Index 1 | . 1 . . . Proto ID Catalog 1 | . . . 1 . Fabricator Hacks . | . . . . . Repair Station Hacks . | . . . . . Recycling Unit Hacks . | . . . . . Scanalyzer . | . . . . . Garrison Access Hacks . | . . . . . Unauthorized Hacks 2 | . 2 . . . Terminals 1 | . 1 . . . Operators 1 | . 1 . . . Fabricators . | . . . . . Repair Stations . | . . . . . Recycling Units 1 | . 1 . . . Reject 1 | . 1 . . . Scanalyzers . | . . . . . Garrison Access . | . . . . . Data Cores Recovered . | . . . . . Used . | . . . . . Hacking Detections 4 | . 3 1 . . Full Trace Events 2 | . 1 1 . . Feedback Events . | . . . . . Feedback Blocked . | . . . . . Robot Schematics Acquired . | . . . . . Robots Built . | . . . . . Authchips . | . . . . . Time . | . . . . . Total Robot Build Rating . | . . . . . Part Schematics Acquired . | . . . . . Parts Built . | . . . . . Authchips . | . . . . . Time . | . . . . . Total Part Build Rating . | . . . . . Parts Repaired . | . . . . . Time . | . . . . . Parts Recycled . | . . . . . Recycled Matter . | . . . . . Retrieved Matter . | . . . . . Retrieved Components . | . . . . . Parts Scanalyzed . | . . . . . Part Schematics Acquired . | . . . . . Parts Damaged . | . . . . . Bothacking | -11 -10 -10 -10 -9 ------------ Run | Yrd Mat Min Exi Min Used RIF Installer . | . . . . . Robots Hacked . | . . . . . Non-combat . | . . . . . Combat . | . . . . . Robot Hacks Applied . | . . . . . Relay Couplers Released . | . . . . . Fabnet Peak Effective % . | . . . . . Robots Rewired . | . . . . . Allies Hacked . | . . . . . Hacks Repelled . | . . . . . Allies | -11 -10 -10 -10 -9 -------- Run | Yrd Mat Min Exi Min Total Allies 5 | . . 5 . . Largest Group 5 | . . 5 5 3 Highest-Rated Group 82 | . . 82 82 40 Highest-Rated Ally 31 | . . 31 31 16 Total Orders . | . . . . . Ally Attacks 50 | . . 31 . 19 Total Damage 417 | . . 216 . 201 Kills 9 | . . 5 . 4 Allies Corrupted . | . . . . . Allies Melted . | . . . . . Intel | -11 -10 -10 -10 -9 ------- Run | Yrd Mat Min Exi Min Active Infowar (turns) 129 | 18 105 6 . . Sensors 6 | . . 6 . . Terrain 123 | 18 105 . . . Robot Analysis Total . | . . . . . Derelict Logs Recovered 2 | . . 1 . 1 Drone Launches 3 | . . 3 . . Drone Recoveries 3 | . . 3 . . Exploration | -11 -10 -10 -10 -9 ------------- Run | Yrd Mat Min Exi Min Turns Passed 2357 | 117 531 1210 411 88 Spaces Moved 1251 | 65 304 643 209 30 Core 21 | 15 . . . 6 Treads . | . . . . . Legs 1230 | 50 304 643 209 24 Wheels . | . . . . . Hover . | . . . . . Flight . | . . . . . Fastest Speed 50 | 50 120 120 190 50 Average Speed 160 | 103 124 173 190 162 Slowest Speed 190 | 120 190 190 190 190 Overloaded Moves . | . . . . . Propulsion Burnouts . | . . . . . Robots Hopped . | . . . . . Potential Cave-ins 3 | . . . . 3 Cave-ins Triggered . | . . . . . Exploration Rate (%) 42 | 4 42 97 61 7 Regions Visited 4 Branch Regions 3 Pre-discovered Areas . | . . . . . Known Exits Taken . | . . . . . Unknown Exits Taken 4 | 1 1 1 1 . Scrap Searched 1 | . . 1 . . Spaces Dug . | . . . . . Terrain Destroyed 69 | . 8 . . 61 Melee . | . . . . . Projectile . | . . . . . AOE 69 | . 8 . . 61 Terrain Rammed . | . . . . . Walls Destroyed . | . . . . . Machines Disabled . | . . . . . Actions | -11 -10 -10 -10 -9 --------- Run | Yrd Mat Min Exi Min Total 1496 | 101 389 719 225 62 Wait 141 | 12 32 60 13 24 Move 1247 | 64 303 642 208 30 Hop . | . . . . . Pick Up 21 | 9 7 4 1 . Fast Attach . | . . . . . Attach 9 | 7 2 . . . Detach . | . . . . . Swap 13 | 1 6 5 . 1 Drop 7 | . 2 . 3 2 Fire 58 | 8 37 8 . 5 Melee . | . . . . . Ram . | . . . . . Kick . | . . . . . Crush . | . . . . . Escape Stasis . | . . . . . Rewire . | . . . . . Trap . | . . . . . Miscellaneous . | . . . . . Route ------- -11/Scrapyard -10/Materials (discovered 2 exits: [*Mat] / *Min) -10/Mines (discovered 4 exits: [*Mat x2] / *Exi / [*Sub]) -10/Exiles -9/Mines History --------- Turn | Location | Event 5 | -11/Scrapyard | Discovered new exit (range 15) 118 | -11/Scrapyard | Entered Materials 303 | -10/Materials | Build established: Mutant 423 | -10/Materials | Discovered new exit (range 4) 590 | -10/Materials | Discovered new exit (range 13) 612 | -10/Materials | Build established: Scavenger-Mutant 649 | -10/Materials | Entered Mines 691 | -10/Mines | Assisted by bots powering up and referring to "LRC-V3" 795 | -10/Mines | Learned Materials interactive machine intel 820 | -10/Mines | Found the Drone Emporium 825 | -10/Mines | Found Prototype Device 854 | -10/Mines | Identified Thief Drone Bay 937 | -10/Mines | Discovered new exit (range 8) 1050 | -10/Mines | Received a Rocket Launcher from a helpful Derelict 1086 | -10/Mines | Found a damaged Exp. Sensor Array with a note attached 1101 | -10/Mines | Found Prototype Device 1102 | -10/Mines | Identified Exp. Sensor Array 1144 | -10/Mines | Build established: Mutant 1206 | -10/Mines | Discovered new exit (range 6) 1482 | -10/Mines | Joined a pair of Derelicts in attacking an 0b10 outpost 1620 | -10/Mines | Discovered new exit (range 8) 1843 | -10/Mines | Deemed a non-threat by the Exiles lab entrance 1843 | -10/Mines | Discovered new exit (range 5) 1859 | -10/Mines | Entered Exiles 1859 | -10/Exiles | Accompanied by 5 allies 1889 | -10/Exiles | Led the pair of lost Derelicts to a safe place 1907 | -10/Exiles | Met 8R-AWN 1934 | -10/Exiles | Met EX-HEX 1991 | -10/Exiles | Met EX-BIN 2013 | -10/Exiles | Aligned with FarCom system 2015 | -10/Exiles | Given EX-Vault access code 2063 | -10/Exiles | Opened EX-Vault 2086 | -10/Exiles | Found Trap Reconfigurator 2127 | -10/Exiles | Warned to stay clear of 0b10 Research branches 2180 | -10/Exiles | Met EX-DEC 2249 | -10/Exiles | Discovered new exit (range 12) 2270 | -10/Exiles | Left Exiles lab with Trap Reconfigurator 2270 | -10/Exiles | Entered Mines 2270 | -9/Mines | Accompanied by 3 allies 2271 | -9/Mines | Assembled infested the area 2282 | -9/Mines | Learned location of 1 exit from Materials 2351 | -9/Mines | Core integrity fell below 50% 2356 | -9/Mines | Core integrity fell below 20% 2358 | -9/Mines | Destroyed by as-16253 with Assembled Rifle Last Messages --------------- Trooper 1b destroyed. Trooper 1a destroyed. as-97512 destroyed. as-21932 destroyed. as-09561 destroyed. Sml. Laser destroyed. The unstable cave ceiling collapses. Lgt. Nuclear Core destroyed. Destroyed Asb. Hover Unit. as-20885 destroyed. as-72464 destroyed. Rocket Launcher destroyed. Destroyed Rocket Launcher. Aluminum Leg destroyed. Destroyed Aluminum Leg. as-56183 destroyed. Aluminum Leg destroyed. The unstable cave ceiling collapses. Dropped Med. Storage Unit. Dropped Thief Drone Bay. Map ----- +----------------------------------------------------+ | | | ?????????????????????????????????????????????????? | | ?????????????????????????????????????????????????? | | ?????????????????????????????????????????????????? | | ?????????????????????????????????????????????????? | | ?????????????????????????????????????????????????? | | ?????????????????????????????????????????????????? | | ?????????????????????????????????????????????????? | | ?????????????????????????????????????????????????? | | ?????????????????????????????????????????????????? | | ?????????????????????????????????????????????????? | | ?????????????????????????????????????????????????? | | ?????????????????????????????????????????????????? | | ?????????????????????????????????????????????????? | | ?????????????????????????????????????????????????? | | ?????????????????????????????????????????????????? | | ???????????????????????????????#? ???????????????? | | ????????????????????????####?? ????????????????? | | ????????????############# ## ??????????????????? | | ????????????# # ????????????????????? | | ????????????# #### ##????????????????????? | | ??????????### #### aa ##???????????????????? | | ??????????# = a ##??????????????????? | | ??????????# [!!# a ##?????????????????? | | ??????????# # * a a #?????????????????? | | ??????????# # a @ # #?????????????????? | | ??????????# # ####????????????????????? | | ??????????# # #???????????????????????? | | ??????????# #########???????????????????????? | | ??????????########???????????????????????????????? | | ?????????????????????????????????????????????????? | | ?????????????????????????????????????????????????? | | ?????????????????????????????????????????????????? | | ?????????????????????????????????????????????????? | | ?????????????????????????????????????????????????? | | ?????????????????????????????????????????????????? | | ?????????????????????????????????????????????????? | | ?????????????????????????????????????????????????? | | ?????????????????????????????d???????????????????? | | ?????????????????????????????????????????????????? | | ?????????????????????????????????????????????????? | | ?????????????????????????????d???????????????????? | | ?????????????????????????????????????????????????? | | ?????????????????????????????????????????????????? | | ?????????????????????????????????????????????????? | | ?????????????????????????????????????????????????? | | ?????????????????????????????????????????????????? | | ?????????????????????????????????????????????????? | | ?????????????????????????????????????????????????? | | ?????????????????????????????????????????????????? | +----------------------------------------------------+ Best States ------------- Heat Dissipation 35 Energy Generation 14 Energy Capacity 250 Matter Stores 300 Matter Capacity 300 Sight Range 16 Robot Scan Range 20 Terrain Scan Range 16 Terrain Scan Density 10 Evasion (%) 55 Item Schematics ----------------- None Robot Schematics ------------------ None Fabricated ------------ Nothing Repaired ---------- Nothing Alien Tech Used ----------------- None Achievements -------------- None Challenges ------------ None Game ------ Seed MultinovaCobblerManipulator Manual? 0 Play Time 00:22:23 Cumulative 28.5 hours Start 2025.10.13 @ 20:35:17 End 2025.10.13 @ 21:42:49 Sessions 1 Manual Loads 0 Difficulty Rogue Special Mode None Game No. 72 Rogue 72 Adventurer 0 Explorer 0 Win Type - Total 0 Types 0/0/0/0/0/0/0/0/0/0 Lore% 22 Gallery% 29 Achievement% 26 Wizard Run 0 Options --------- Layout 2 ASCII 0 Keyboard 0 Movement Numpad Keybinds 0 Fullscreen 1 Font 24/Smallcaps Map View 50x44 Zoom Use 0% Tactical HUD 0 Map Filters NONE Filters NONE Steam 1 RUN: 99d7c9f1-07e3-4d2f-8beb-139ad29e05e7